[Event "Late-Titled-Tuesday-Blitz-March-12-2024"]
[Site "Chess.com"]
[Date "2024.03.12"]
[Round "5"]
[White "KuzubovYuriy"]
[Black "Lennis93"]
[Result "1-0"]
[WhiteElo "2913"]
[BlackElo "2695"]
[TimeControl "180+1"]
[EndTime "14:54:42 PDT"]
[Termination "KuzubovYuriy won on time"]

1. d4 {[%clk 0:03:00.9]} 1... Nf6 {[%clk 0:02:58.9]} 2. Nf3 {[%clk 0:03:01.6]}
2... b6 {[%clk 0:02:55.2]} 3. c4 {[%clk 0:03:00.6]} 3... Bb7 {[%clk 0:02:55.2]}
4. g3 {[%clk 0:02:59.5]} 4... Bxf3 {[%clk 0:02:52.6]} 5. exf3 {[%clk 0:02:59.8]}
5... e6 {[%clk 0:02:53.2]} 6. Nc3 {[%clk 0:02:58.9]} 6... d5 {[%clk 0:02:14.1]}
7. cxd5 {[%clk 0:02:57.6]} 7... Nxd5 {[%clk 0:02:13.9]} 8. Bb5+ {[%clk
0:02:57.2]} 8... c6 {[%clk 0:02:13.8]} 9. Bd3 {[%clk 0:02:52.4]} 9... Bb4 {[%clk
0:02:11.1]} 10. Bd2 {[%clk 0:02:43.7]} 10... Nd7 {[%clk 0:02:10.6]} 11. O-O
{[%clk 0:02:38.9]} 11... a5 {[%clk 0:01:58.5]} 12. Qc2 {[%clk 0:02:37.3]} 12...
Rc8 {[%clk 0:01:43.4]} 13. Rfe1 {[%clk 0:02:30.7]} 13... N7f6 {[%clk 0:01:41.4]}
14. a3 {[%clk 0:02:29.9]} 14... Bxc3 {[%clk 0:01:31.4]} 15. bxc3 {[%clk
0:02:30.1]} 15... b5 {[%clk 0:01:31.7]} 16. a4 {[%clk 0:02:17.8]} 16... b4
{[%clk 0:01:23.7]} 17. c4 {[%clk 0:01:57.7]} 17... Ne7 {[%clk 0:01:23.2]} 18.
Be3 {[%clk 0:01:50.5]} 18... O-O {[%clk 0:01:19]} 19. Rad1 {[%clk 0:01:48]}
19... h6 {[%clk 0:01:19]} 20. h4 {[%clk 0:01:37.5]} 20... Qd7 {[%clk 0:01:11.7]}
21. g4 {[%clk 0:01:33.9]} 21... Ne8 {[%clk 0:00:55.9]} 22. Bc1 {[%clk
0:01:16.6]} 22... Nc7 {[%clk 0:00:21.2]} 23. Qe2 {[%clk 0:01:08.1]} 23... f5
{[%clk 0:00:17.9]} 24. Bc2 {[%clk 0:01:04.1]} 24... Rf7 {[%clk 0:00:11]} 25. h5
{[%clk 0:00:54.3]} 25... Rcf8 {[%clk 0:00:10.7]} 26. Qd3 {[%clk 0:00:50.4]}
26... Qd6 {[%clk 0:00:03.1]} 27. Re5 {[%clk 0:00:32.5]} 27... Rd8 {[%clk
0:00:03]} 28. Rxa5 {[%clk 0:00:30.7]} 28... fxg4 {[%clk 0:00:03.1]} 29. fxg4
{[%clk 0:00:27.1]} 29... Kf8 {[%clk 0:00:03.3]} 30. Kg2 {[%clk 0:00:21.6]} 30...
Ng8 {[%clk 0:00:03.5]} 31. f3 {[%clk 0:00:20.6]} 31... Nf6 {[%clk 0:00:03.8]}
32. Qb3 {[%clk 0:00:17.6]} 32... Kg8 {[%clk 0:00:03.4]} 33. Bg6 {[%clk
0:00:16.9]} 33... Rfd7 {[%clk 0:00:03]} 34. Bb2 {[%clk 0:00:14.9]} 34... Rb8
{[%clk 0:00:02.3]} 35. Re1 {[%clk 0:00:14]} 35... Qf4 {[%clk 0:00:02.3]} 36. Qe3
{[%clk 0:00:14]} 36... Qd6 {[%clk 0:00:02.2]} 37. Re5 {[%clk 0:00:13]} 37... Qe7
{[%clk 0:00:02.2]} 38. g5 {[%clk 0:00:11.8]} 38... hxg5 {[%clk 0:00:01.9]} 39.
Qxg5 {[%clk 0:00:12.1]} 39... b3 {[%clk 0:00:02.5]} 40. Bb1 {[%clk 0:00:10.3]}
40... Qf8 {[%clk 0:00:02.4]} 41. Rh1 {[%clk 0:00:09.5]} 41... Kh8 {[%clk
0:00:02.4]} 42. h6 {[%clk 0:00:09.2]} 42... gxh6 {[%clk 0:00:03]} 43. Rxh6+
{[%clk 0:00:08.5]} 43... Nh7 {[%clk 0:00:03.9]} 44. Bxh7 {[%clk 0:00:06.9]}
44... Rxh7 {[%clk 0:00:04.8]} 45. Rxh7+ {[%clk 0:00:07.2]} 45... Kxh7 {[%clk
0:00:05.6]} 46. Qg4 {[%clk 0:00:06.7]} 46... Qg7 {[%clk 0:00:01.2]} 47. Rh5+
{[%clk 0:00:06.5]} 47... Kg8 {[%clk 0:00:01.1]} 48. Rg5 {[%clk 0:00:07.2]} 1-0

[Event "Late-Titled-Tuesday-Blitz-March-12-2024"]
[Site "Chess.com"]
[Date "2024.03.12"]
[Round "5"]
[White "djano"]
[Black "SchmakAttack"]
[Result "0-1"]
[WhiteElo "2589"]
[BlackElo "2818"]
[TimeControl "180+1"]
[EndTime "14:54:46 PDT"]
[Termination "SchmakAttack won by checkmate"]

1. e4 {[%clk 0:02:59.1]} 1... e5 {[%clk 0:02:58.7]} 2. Nf3 {[%clk 0:02:58.7]}
2... Nc6 {[%clk 0:02:59.2]} 3. d4 {[%clk 0:02:59]} 3... exd4 {[%clk 0:02:59.4]}
4. Nxd4 {[%clk 0:02:59.9]} 4... Nf6 {[%clk 0:02:58.2]} 5. Nxc6 {[%clk
0:02:57.7]} 5... bxc6 {[%clk 0:02:59.1]} 6. Bd3 {[%clk 0:02:58.1]} 6... d5
{[%clk 0:02:58.9]} 7. exd5 {[%clk 0:02:57.8]} 7... cxd5 {[%clk 0:02:59.8]} 8.
O-O {[%clk 0:02:57.8]} 8... Bd6 {[%clk 0:02:57.1]} 9. h3 {[%clk 0:02:56.2]} 9...
O-O {[%clk 0:02:55.4]} 10. Qf3 {[%clk 0:02:54.6]} 10... Rb8 {[%clk 0:02:38.9]}
11. Nc3 {[%clk 0:02:47.6]} 11... c5 {[%clk 0:02:30.4]} 12. Bg5 {[%clk 0:02:41]}
12... Be6 {[%clk 0:02:30.4]} 13. Kh1 {[%clk 0:02:18.3]} 13... c4 {[%clk
0:02:18.3]} 14. Bf5 {[%clk 0:02:12.9]} 14... Rxb2 {[%clk 0:02:14.9]} 15. Rfe1
{[%clk 0:01:55.4]} 15... Bxf5 {[%clk 0:01:37.7]} 16. Qxf5 {[%clk 0:01:56.3]}
16... Bb4 {[%clk 0:01:36.4]} 17. Re3 {[%clk 0:01:37.4]} 17... Bxc3 {[%clk
0:01:27]} 18. Rxc3 {[%clk 0:01:37.3]} 18... Qd7 {[%clk 0:01:26.7]} 19. Qxd7
{[%clk 0:01:08.4]} 19... Nxd7 {[%clk 0:01:27.6]} 20. Be3 {[%clk 0:01:09]} 20...
Nf6 {[%clk 0:01:02.5]} 21. f3 {[%clk 0:01:04.3]} 21... Re8 {[%clk 0:01:02.5]}
22. Bxa7 {[%clk 0:00:59.1]} 22... Ra8 {[%clk 0:00:56.9]} 23. Bd4 {[%clk
0:00:50.2]} 23... Raxa2 {[%clk 0:00:53.1]} 24. Rd1 {[%clk 0:00:47.3]} 24... Rb5
{[%clk 0:00:50.7]} 25. g4 {[%clk 0:00:30.7]} 25... h6 {[%clk 0:00:50.9]} 26. h4
{[%clk 0:00:30.7]} 26... Kf8 {[%clk 0:00:35.8]} 27. Rd2 {[%clk 0:00:25.9]} 27...
Ke7 {[%clk 0:00:27.5]} 28. Kg2 {[%clk 0:00:25.8]} 28... Ra6 {[%clk 0:00:19.6]}
29. Kg3 {[%clk 0:00:25.3]} 29... Re6 {[%clk 0:00:19.2]} 30. Ra3 {[%clk
0:00:25.1]} 30... Rb7 {[%clk 0:00:19.5]} 31. g5 {[%clk 0:00:22]} 31... hxg5
{[%clk 0:00:20.4]} 32. hxg5 {[%clk 0:00:21.7]} 32... Nh5+ {[%clk 0:00:21]} 33.
Kg4 {[%clk 0:00:22.3]} 33... g6 {[%clk 0:00:21.8]} 34. Ra8 {[%clk 0:00:20.4]}
34... Kd6 {[%clk 0:00:13.3]} 35. Bg1 {[%clk 0:00:17.3]} 35... Rb1 {[%clk
0:00:07.7]} 36. Rd8+ {[%clk 0:00:14.2]} 36... Kc7 {[%clk 0:00:04.9]} 37. R8xd5
{[%clk 0:00:11.3]} 37... Rxg1+ {[%clk 0:00:05]} 38. Kh4 {[%clk 0:00:10.4]} 38...
Rf1 {[%clk 0:00:01.4]} 39. Rd7+ {[%clk 0:00:10.9]} 39... Kc6 {[%clk 0:00:02]}
40. Rxf7 {[%clk 0:00:11.8]} 40... Rd6 {[%clk 0:00:02]} 41. Re2 {[%clk
0:00:11.9]} 41... Rd4+ {[%clk 0:00:01.9]} 42. Kh3 {[%clk 0:00:12]} 42... Nf4+
{[%clk 0:00:02.6]} 43. Kg3 {[%clk 0:00:12.1]} 43... Nxe2+ {[%clk 0:00:02.6]} 44.
Kg2 {[%clk 0:00:13]} 44... Rc1 {[%clk 0:00:02.8]} 45. Rf6+ {[%clk 0:00:13.9]}
45... Rd6 {[%clk 0:00:03.2]} 46. Rf7 {[%clk 0:00:14.1]} 46... Rxc2 {[%clk
0:00:03.7]} 47. Kf2 {[%clk 0:00:14.5]} 47... Nd4+ {[%clk 0:00:04.4]} 48. Ke3
{[%clk 0:00:15.4]} 48... Nf5+ {[%clk 0:00:04.8]} 49. Kf4 {[%clk 0:00:15.6]}
49... Rd4+ {[%clk 0:00:04.4]} 50. Ke5 {[%clk 0:00:16.3]} 50... Re2+ {[%clk
0:00:04.7]} 51. Kf6 {[%clk 0:00:17.2]} 51... Rd6# {[%clk 0:00:05.4]} 0-1

[Event "Late-Titled-Tuesday-Blitz-March-12-2024"]
[Site "Chess.com"]
[Date "2024.03.12"]
[Round "5"]
[White "WilsonPalencia21"]
[Black "carloseduar100"]
[Result "1-0"]
[WhiteElo "2547"]
[BlackElo "2314"]
[TimeControl "180+1"]
[EndTime "14:54:46 PDT"]
[Termination "WilsonPalencia21 won by checkmate"]

1. d4 {[%clk 0:03:00.9]} 1... d5 {[%clk 0:02:53.2]} 2. c4 {[%clk 0:03:00.6]}
2... e5 {[%clk 0:02:52.3]} 3. dxe5 {[%clk 0:02:59.8]} 3... d4 {[%clk 0:02:47]}
4. Nf3 {[%clk 0:02:56.1]} 4... Nc6 {[%clk 0:02:46.6]} 5. g3 {[%clk 0:02:55.5]}
5... Nge7 {[%clk 0:02:41.3]} 6. Bg2 {[%clk 0:02:55.7]} 6... Ng6 {[%clk
0:02:41.2]} 7. O-O {[%clk 0:02:55.2]} 7... Ngxe5 {[%clk 0:02:38.7]} 8. Nxe5
{[%clk 0:02:53.7]} 8... Nxe5 {[%clk 0:02:28.7]} 9. Qa4+ {[%clk 0:02:53.7]} 9...
Qd7 {[%clk 0:02:25.2]} 10. Qb3 {[%clk 0:02:50.4]} 10... Be7 {[%clk 0:02:21.6]}
11. Rd1 {[%clk 0:02:46.2]} 11... O-O {[%clk 0:02:19.1]} 12. Nc3 {[%clk
0:02:36.8]} 12... c6 {[%clk 0:02:04]} 13. Be3 {[%clk 0:02:30.8]} 13... dxe3
{[%clk 0:01:52.8]} 14. Rxd7 {[%clk 0:02:29.7]} 14... exf2+ {[%clk 0:01:53.7]}
15. Kf1 {[%clk 0:02:27.6]} 15... Nxd7 {[%clk 0:01:54.6]} 16. Ne4 {[%clk
0:02:25.1]} 16... Nc5 {[%clk 0:01:52.4]} 17. Qe3 {[%clk 0:02:14.1]} 17... Nxe4
{[%clk 0:01:50.2]} 18. Bxe4 {[%clk 0:02:11.8]} 18... Be6 {[%clk 0:01:49.1]} 19.
Rc1 {[%clk 0:02:03.9]} 19... h6 {[%clk 0:01:40.3]} 20. Qxf2 {[%clk 0:02:00.9]}
20... Rfe8 {[%clk 0:01:39.5]} 21. h4 {[%clk 0:01:49.2]} 21... Bf6 {[%clk
0:01:39.5]} 22. Rc2 {[%clk 0:01:45.4]} 22... Rad8 {[%clk 0:01:37]} 23. Kg2
{[%clk 0:01:39.8]} 23... Rd4 {[%clk 0:01:32.5]} 24. Bd3 {[%clk 0:01:31.8]} 24...
Red8 {[%clk 0:01:32.6]} 25. Kh2 {[%clk 0:01:26]} 25... Be5 {[%clk 0:01:18.9]}
26. Kg2 {[%clk 0:01:21.4]} 26... Rxd3 {[%clk 0:01:11.4]} 27. exd3 {[%clk
0:01:19]} 27... Rxd3 {[%clk 0:01:12.3]} 28. Re2 {[%clk 0:01:13.5]} 28... Rxg3+
{[%clk 0:01:09]} 29. Qxg3 {[%clk 0:01:12.2]} 29... Bxg3 {[%clk 0:01:09.1]} 30.
Kxg3 {[%clk 0:01:12.7]} 30... Bxc4 {[%clk 0:01:04.7]} 31. Re8+ {[%clk
0:01:12.1]} 31... Kh7 {[%clk 0:01:05]} 32. b3 {[%clk 0:01:12.2]} 32... Bd5
{[%clk 0:00:29.2]} 33. Rd8 {[%clk 0:01:02.7]} 33... Be6 {[%clk 0:00:18.9]} 34.
Rb8 {[%clk 0:00:57.5]} 34... b5 {[%clk 0:00:18.5]} 35. Ra8 {[%clk 0:00:54]}
35... Kg6 {[%clk 0:00:16.7]} 36. Rxa7 {[%clk 0:00:53.3]} 36... Kf6 {[%clk
0:00:16.9]} 37. Rb7 {[%clk 0:00:49.6]} 37... Ke5 {[%clk 0:00:16.9]} 38. a4
{[%clk 0:00:48.1]} 38... Bxb3 {[%clk 0:00:17]} 39. a5 {[%clk 0:00:48.3]} 39...
Bd5 {[%clk 0:00:17]} 40. a6 {[%clk 0:00:45.6]} 40... c5 {[%clk 0:00:13.8]} 41.
Rxb5 {[%clk 0:00:45.5]} 41... Kd4 {[%clk 0:00:14]} 42. a7 {[%clk 0:00:45.6]}
42... f5 {[%clk 0:00:13.1]} 43. Kf4 {[%clk 0:00:44.9]} 43... Be4 {[%clk
0:00:11.5]} 44. Rb8 {[%clk 0:00:37.7]} 44... g5+ {[%clk 0:00:11.9]} 45. hxg5
{[%clk 0:00:37.4]} 45... hxg5+ {[%clk 0:00:12.8]} 46. Kxg5 {[%clk 0:00:38.2]}
46... c4 {[%clk 0:00:12.6]} 47. Re8 {[%clk 0:00:36.3]} 47... Bc6 {[%clk
0:00:09.2]} 48. Rc8 {[%clk 0:00:35.9]} 48... Be4 {[%clk 0:00:09.4]} 49. Rd8+
{[%clk 0:00:28.1]} 49... Ke3 {[%clk 0:00:09.1]} 50. Re8 {[%clk 0:00:27.6]} 50...
c3 {[%clk 0:00:09.3]} 51. a8=Q {[%clk 0:00:26.6]} 51... c2 {[%clk 0:00:08.9]}
52. Qc8 {[%clk 0:00:25.2]} 52... Kd2 {[%clk 0:00:08.8]} 53. Rd8+ {[%clk
0:00:25.1]} 53... Kc1 {[%clk 0:00:08.7]} 54. Qc3 {[%clk 0:00:23.5]} 54... Kb1
{[%clk 0:00:06.5]} 55. Rb8+ {[%clk 0:00:22.8]} 55... Kc1 {[%clk 0:00:06.9]} 56.
Qe1# {[%clk 0:00:22.8]} 1-0

[Event "Late-Titled-Tuesday-Blitz-March-12-2024"]
[Site "Chess.com"]
[Date "2024.03.12"]
[Round "5"]
[White "bascheyaro"]
[Black "maximnovik"]
[Result "1-0"]
[WhiteElo "2791"]
[BlackElo "2590"]
[TimeControl "180+1"]
[EndTime "14:54:51 PDT"]
[Termination "bascheyaro won by resignation"]

1. d4 {[%clk 0:03:00.9]} 1... Nf6 {[%clk 0:02:59.8]} 2. Nf3 {[%clk 0:03:00.9]}
2... g6 {[%clk 0:02:59.9]} 3. Bf4 {[%clk 0:03:01.2]} 3... Bg7 {[%clk 0:03:00]}
4. e3 {[%clk 0:03:01.8]} 4... O-O {[%clk 0:02:58.6]} 5. h3 {[%clk 0:03:02.3]}
5... d6 {[%clk 0:02:58.7]} 6. Be2 {[%clk 0:03:02.4]} 6... c5 {[%clk 0:02:58.9]}
7. O-O {[%clk 0:03:02.3]} 7... Qb6 {[%clk 0:02:54.4]} 8. Nc3 {[%clk 0:03:02.5]}
8... cxd4 {[%clk 0:02:43.6]} 9. exd4 {[%clk 0:03:01.1]} 9... Bf5 {[%clk
0:02:30.1]} 10. Rb1 {[%clk 0:02:24.5]} 10... Nc6 {[%clk 0:02:10.7]} 11. Qd2
{[%clk 0:02:23.3]} 11... Ne4 {[%clk 0:02:02.1]} 12. Nxe4 {[%clk 0:02:23]} 12...
Bxe4 {[%clk 0:02:02.3]} 13. Be3 {[%clk 0:02:08.2]} 13... Bxf3 {[%clk 0:01:59]}
14. d5 {[%clk 0:02:08.2]} 14... Nd4 {[%clk 0:01:45.2]} 15. Bxd4 {[%clk
0:02:03.2]} 15... Qxd4 {[%clk 0:01:43.5]} 16. Qxd4 {[%clk 0:02:03.4]} 16... Bxd4
{[%clk 0:01:43.3]} 17. Bxf3 {[%clk 0:02:04.2]} 17... Rfc8 {[%clk 0:01:41.5]} 18.
c3 {[%clk 0:02:04.6]} 18... Bf6 {[%clk 0:01:41.5]} 19. Rfe1 {[%clk 0:02:00.1]}
19... b5 {[%clk 0:01:40.7]} 20. Re4 {[%clk 0:01:59.4]} 20... a5 {[%clk
0:01:40.1]} 21. a4 {[%clk 0:01:58.6]} 21... Rab8 {[%clk 0:01:36]} 22. Bg4 {[%clk
0:01:07.7]} 22... Rc5 {[%clk 0:01:31.5]} 23. b4 {[%clk 0:01:07.6]} 23... axb4
{[%clk 0:01:22.6]} 24. Rexb4 {[%clk 0:01:07.3]} 24... Rxd5 {[%clk 0:01:01.5]}
25. c4 {[%clk 0:01:07.1]} 25... Rd2 {[%clk 0:00:49]} 26. cxb5 {[%clk 0:01:00.6]}
26... Bd4 {[%clk 0:00:48]} 27. Rf1 {[%clk 0:00:56.5]} 27... f5 {[%clk
0:00:46.4]} 28. Bf3 {[%clk 0:00:56.1]} 28... e6 {[%clk 0:00:45.7]} 29. Bc6
{[%clk 0:00:52.5]} 29... Bb6 {[%clk 0:00:41.4]} 30. g4 {[%clk 0:00:44.3]} 30...
Kf7 {[%clk 0:00:40.7]} 31. Kg2 {[%clk 0:00:43.8]} 31... d5 {[%clk 0:00:37.2]}
32. gxf5 {[%clk 0:00:38.4]} 32... gxf5 {[%clk 0:00:36.8]} 33. Rh4 {[%clk
0:00:38.6]} 33... Rg8+ {[%clk 0:00:35.4]} 34. Kf3 {[%clk 0:00:38.6]} 34... Rg7
{[%clk 0:00:30.6]} 35. Rh6 {[%clk 0:00:38.3]} 35... e5 {[%clk 0:00:29.3]} 36.
Bxd5+ {[%clk 0:00:34.1]} 36... Rxd5 {[%clk 0:00:25.2]} 37. Rxb6 {[%clk
0:00:34.7]} 37... Rd3+ {[%clk 0:00:18.8]} 38. Ke2 {[%clk 0:00:34.8]} 38... Ra3
{[%clk 0:00:19.3]} 39. Rb7+ {[%clk 0:00:16.1]} 39... Kf6 {[%clk 0:00:19.4]} 40.
Rxg7 {[%clk 0:00:16.7]} 40... Kxg7 {[%clk 0:00:19.5]} 41. Rb1 {[%clk 0:00:17]}
41... Rxa4 {[%clk 0:00:19.3]} 42. b6 {[%clk 0:00:17.7]} 42... Ra8 {[%clk
0:00:19.4]} 43. b7 {[%clk 0:00:18.4]} 43... Rb8 {[%clk 0:00:20]} 44. Kd3 {[%clk
0:00:19]} 44... Kf6 {[%clk 0:00:20.6]} 45. Kc4 {[%clk 0:00:19.5]} 45... Ke6
{[%clk 0:00:21.2]} 46. Kc5 {[%clk 0:00:20.1]} 46... e4 {[%clk 0:00:18.7]} 47.
Kc6 {[%clk 0:00:20.1]} 47... f4 {[%clk 0:00:18.5]} 48. Rb5 {[%clk 0:00:19.3]}
48... Rf8 {[%clk 0:00:14.5]} 49. b8=Q {[%clk 0:00:18.5]} 49... Rxb8 {[%clk
0:00:14.5]} 50. Rxb8 {[%clk 0:00:19.4]} 50... Ke5 {[%clk 0:00:15.3]} 51. Kc5
{[%clk 0:00:18.5]} 51... e3 {[%clk 0:00:15]} 52. Re8+ {[%clk 0:00:18.7]} 52...
Kf5 {[%clk 0:00:14.1]} 53. fxe3 {[%clk 0:00:19.5]} 53... f3 {[%clk 0:00:14.4]}
54. Kd4 {[%clk 0:00:19.9]} 54... h5 {[%clk 0:00:13.5]} 55. Rf8+ {[%clk
0:00:20.8]} 55... Kg5 {[%clk 0:00:13.5]} 56. Rxf3 {[%clk 0:00:20.9]} 1-0

[Event "Late-Titled-Tuesday-Blitz-March-12-2024"]
[Site "Chess.com"]
[Date "2024.03.12"]
[Round "5"]
[White "Vesapesa"]
[Black "mortngabriel"]
[Result "0-1"]
[WhiteElo "2206"]
[BlackElo "2528"]
[TimeControl "180+1"]
[EndTime "14:54:54 PDT"]
[Termination "mortngabriel won on time"]

1. e4 {[%clk 0:03:00.9]} 1... c5 {[%clk 0:02:59.7]} 2. Nf3 {[%clk 0:02:58.8]}
2... Nc6 {[%clk 0:02:58.6]} 3. Bb5 {[%clk 0:02:57.8]} 3... Nf6 {[%clk
0:02:57.8]} 4. e5 {[%clk 0:02:55.3]} 4... Nd5 {[%clk 0:02:57.6]} 5. Nc3 {[%clk
0:02:50.1]} 5... Nc7 {[%clk 0:02:57.5]} 6. Bxc6 {[%clk 0:02:49.3]} 6... dxc6
{[%clk 0:02:58.4]} 7. O-O {[%clk 0:02:47.2]} 7... Bg4 {[%clk 0:02:58.2]} 8. h3
{[%clk 0:02:39.4]} 8... Bh5 {[%clk 0:02:57.9]} 9. Ne4 {[%clk 0:02:32.6]} 9...
Qd5 {[%clk 0:02:41.9]} 10. d3 {[%clk 0:02:26.1]} 10... O-O-O {[%clk 0:02:32.7]}
11. Be3 {[%clk 0:02:05.3]} 11... Ne6 {[%clk 0:02:23.7]} 12. Ned2 {[%clk
0:01:59.2]} 12... h6 {[%clk 0:01:56]} 13. b4 {[%clk 0:01:54.6]} 13... g5 {[%clk
0:01:50.7]} 14. Bxc5 {[%clk 0:01:29.5]} 14... Nxc5 {[%clk 0:01:41.5]} 15. bxc5
{[%clk 0:01:30.4]} 15... e6 {[%clk 0:01:20.2]} 16. Ne4 {[%clk 0:01:17.6]} 16...
Bxc5 {[%clk 0:01:19.3]} 17. Nxc5 {[%clk 0:01:15.8]} 17... Qxc5 {[%clk
0:01:19.5]} 18. Qe2 {[%clk 0:01:13.4]} 18... g4 {[%clk 0:00:50.3]} 19. hxg4
{[%clk 0:01:09.9]} 19... Bxg4 {[%clk 0:00:50.1]} 20. Qe4 {[%clk 0:00:59.8]}
20... Rhg8 {[%clk 0:00:45.1]} 21. Rab1 {[%clk 0:00:41.2]} 21... Qd5 {[%clk
0:00:33]} 22. Qb4 {[%clk 0:00:20.4]} 22... Rd7 {[%clk 0:00:27.9]} 23. Nh4 {[%clk
0:00:17.7]} 23... Bh3 {[%clk 0:00:18.8]} 24. f3 {[%clk 0:00:18]} 24... a5 {[%clk
0:00:09.4]} 25. Qa4 {[%clk 0:00:16.5]} 25... Qd4+ {[%clk 0:00:08.9]} 26. Qxd4
{[%clk 0:00:13.2]} 26... Rxd4 {[%clk 0:00:09.8]} 27. Kh2 {[%clk 0:00:10.1]}
27... Rxh4 {[%clk 0:00:07.5]} 28. gxh3 {[%clk 0:00:09.4]} 28... Ra4 {[%clk
0:00:04.4]} 29. Rb2 {[%clk 0:00:08.7]} 29... Kc7 {[%clk 0:00:04.9]} 30. Rg1
{[%clk 0:00:08.2]} 30... Rxg1 {[%clk 0:00:02.9]} 31. Kxg1 {[%clk 0:00:09.1]}
31... h5 {[%clk 0:00:02.8]} 32. c4 {[%clk 0:00:09]} 32... Ra3 {[%clk 0:00:02.8]}
33. Rd2 {[%clk 0:00:08.1]} 33... Rc3 {[%clk 0:00:02.7]} 34. Kf2 {[%clk
0:00:07.1]} 34... h4 {[%clk 0:00:03.1]} 35. Ke3 {[%clk 0:00:07]} 35... b5 {[%clk
0:00:03.2]} 36. cxb5 {[%clk 0:00:06.6]} 36... cxb5 {[%clk 0:00:03.5]} 37. Kf4
{[%clk 0:00:07]} 37... Ra3 {[%clk 0:00:02.6]} 38. Kg4 {[%clk 0:00:07.1]} 38...
Ra4+ {[%clk 0:00:03.2]} 39. Kg5 {[%clk 0:00:07.2]} 39... Kc6 {[%clk 0:00:03]}
40. d4 {[%clk 0:00:06.6]} 40... Kd5 {[%clk 0:00:03.2]} 41. Kxh4 {[%clk
0:00:06.7]} 41... Rxd4+ {[%clk 0:00:01.8]} 42. Rxd4+ {[%clk 0:00:07.6]} 42...
Kxd4 {[%clk 0:00:02.7]} 43. Kg5 {[%clk 0:00:07.9]} 43... b4 {[%clk 0:00:03.6]}
44. h4 {[%clk 0:00:08.2]} 44... a4 {[%clk 0:00:04.2]} 45. h5 {[%clk 0:00:08.6]}
45... b3 {[%clk 0:00:04.9]} 46. axb3 {[%clk 0:00:07.4]} 46... axb3 {[%clk
0:00:05.8]} 47. h6 {[%clk 0:00:07.5]} 47... b2 {[%clk 0:00:06.7]} 48. h7 {[%clk
0:00:07.8]} 48... b1=Q {[%clk 0:00:07.2]} 49. h8=Q {[%clk 0:00:07]} 49... Qf5+
{[%clk 0:00:08.1]} 50. Kh4 {[%clk 0:00:04.7]} 50... Qxe5 {[%clk 0:00:08.2]} 51.
Kg4 {[%clk 0:00:02]} 51... Qxh8 {[%clk 0:00:06.5]} 0-1